fUST/lending_fUST_20251006
["ID","MTS","AMOUNT","RATE_DAILY","PERIOD"]
[389542474,1759708251300,-151.0,0.00018,2]
[389542475,1759708251311,-168.907607,0.00018,2]
[389542476,1759708251321,-151.0,0.00018,2]
[389542477,1759708251330,-151.0,0.00018,2]
[389542478,1759708251339,-151.0,0.00018,2]
[389542479,1759708251348,-151.0,0.00018,2]
[389542480,1759708251356,-151.0,0.00018,2]
[389542481,1759708251365,-151.0,0.00018,2]
[389542482,1759708251374,-151.0,0.00018,2]
[389542483,1759708251383,-151.0,0.00018,2]
[389542484,1759708251392,-151.0,0.00018,2]
[389542485,1759708251401,-151.0,0.00018,2]
[389542486,1759708251410,-197.829002,0.00018,2]
[389542487,1759708251419,-151.0,0.00018,2]
[389542488,1759708251428,-151.0,0.00018,2]
[389542489,1759708251437,-151.0,0.00018,2]
[389542490,1759708251449,-151.0,0.00018,2]
[389542491,1759708251458,-1680.0,0.0001804,2]
[389542492,1759708251467,-151.0,0.00018042,2]
[389542493,1759708251476,-151.0,0.00018042,2]
[389542494,1759708251486,-500.0,0.00018082,2]
[389542495,1759708251495,-500.0,0.00018082,2]
[389542496,1759708251504,-500.0,0.00018082,2]
[389542497,1759708251514,-500.0,0.00018082,2]
[389542498,1759708251526,-500.0,0.00018082,2]
[389542499,1759708251536,-500.0,0.00018082,2]
[389542500,1759708251544,-500.0,0.00018082,2]
[389542501,1759708251553,-500.0,0.00018082,2]
[389542502,1759708251562,-595.9,0.00018082,2]
[389542503,1759708251571,-151.0,0.00018082,2]
[389542504,1759708251580,-500.0,0.00018082,2]
[389542505,1759708251589,-151.0,0.00018082,2]
[389542506,1759708251598,-500.0,0.00018082,2]
[389542507,1759708251609,-151.0,0.00018082,2]
[389542508,1759708251620,-151.0,0.00018082,2]
[389542509,1759708251628,-278.82438791,0.00018082,2]
[389542510,1759708251636,-500.0,0.00018082,2]
[389542511,1759708251645,-151.0,0.00018082,2]
[389542512,1759708251654,-151.0,0.00018082,2]
[389542513,1759708251663,-500.0,0.00018082,2]
[389542514,1759708251673,-1218.9,0.00018082,2]
[389542515,1759708251682,-594.9,0.00018082,2]
[389542516,1759708251692,-151.0,0.00018082,2]
[389542517,1759708251702,-151.0,0.00018082,2]
[389542518,1759708251711,-151.0,0.00018082,2]
[389542519,1759708251721,-642.5,0.00018082,2]
[389542520,1759708251731,-558.64,0.00018082,2]
[389542521,1759708251740,-500.0,0.00018082,2]
[389542522,1759708251750,-500.0,0.00018082,2]
[389542523,1759708251761,-151.0,0.00018082,2]
[389542524,1759708251770,-500.0,0.00018082,2]
[389542525,1759708251779,-500.0,0.00018082,2]
[389542526,1759708251788,-151.0,0.00018082,2]
[389542527,1759708251797,-1014.98,0.00018082,2]
[389542528,1759708251808,-500.0,0.00018082,2]
[389542529,1759708251819,-311.61882551,0.00018082,2]
[389542530,1759708251829,-151.0,0.00018082,2]
[389542531,1759708251838,-151.0,0.00018082,2]
[389542532,1759708251847,-640.19,0.00018082,2]
[389542533,1759708251857,-500.0,0.00018082,2]
[389542534,1759708251867,-151.0,0.00018082,2]
[389542535,1759708251876,-151.0,0.00018082,2]
[389542536,1759708251885,-151.0,0.00018082,2]
[389542537,1759708251895,-779.48,0.00018082,2]
[389542538,1759708251904,-151.0,0.00018082,2]
[389542539,1759708251913,-151.0,0.00018082,2]
[389542540,1759708251922,-500.0,0.00018082,2]
[389542541,1759708251932,-500.0,0.00018082,2]
[389542542,1759708251942,-151.0,0.00018082,2]
[389542543,1759708251951,-151.0,0.00018082,2]
[389542544,1759708251960,-165.30667426,0.00018082,2]
[389542545,1759708251969,-548.08,0.00018082,2]
[389542546,1759708251978,-500.0,0.00018082,2]
[389542547,1759708251987,-500.0,0.00018082,2]
[389542548,1759708251996,-151.0,0.00018082,2]
[389542549,1759708252004,-151.0,0.00018082,2]
[389542550,1759708252013,-151.0,0.00018082,2]
[389542551,1759708252023,-151.0,0.00018082,2]
[389542552,1759708252032,-500.0,0.00018082,2]
[389542553,1759708252041,-500.0,0.00018082,2]
[389542554,1759708252051,-1104.3,0.00018082,2]
[389542555,1759708252060,-151.0,0.00018082,2]
[389542556,1759708252070,-766.56,0.00018082,2]
[389542557,1759708252079,-151.0,0.00018082,2]
[389542558,1759708252088,-704.45,0.00018082,2]
[389542559,1759708252098,-500.0,0.00018082,2]
[389542560,1759708252107,-500.0,0.00018082,2]
[389542561,1759708252118,-8991.3,0.00018082,2]
[389542562,1759708252128,-500.0,0.00018082,2]
[389542563,1759708252139,-500.0,0.00018082,2]
[389542564,1759708252149,-2614.35,0.00018082,2]
[389542565,1759708252159,-622.82,0.00018082,2]
[389542566,1759708252170,-5705.02,0.00018082,2]
[389542567,1759708252180,-500.0,0.00018082,2]
[389542568,1759708252189,-1451.45,0.00018082,2]
[389542569,1759708252199,-1045.01,0.00018082,2]
[389542570,1759708252209,-500.0,0.00018082,2]
[389542571,1759708252219,-2677.65,0.00018082,2]
[389542572,1759708252229,-500.0,0.00018082,2]
[389542573,1759708252239,-3129.37,0.00018082,2]
[389542574,1759708252248,-586.37,0.00018082,2]
[389542575,1759708252259,-500.0,0.00018082,2]
[389542576,1759708252269,-666.22,0.00018082,2]
[389542577,1759708252278,-702.75,0.00018082,2]
[389542578,1759708252287,-511.95,0.00018082,2]
[389542579,1759708252298,-1007.36,0.00018082,2]
[389542580,1759708252309,-610.49,0.00018082,2]
[389542581,1759708252319,-500.0,0.00018082,2]
[389542582,1759708252329,-872.35,0.00018082,2]
[389542583,1759708252338,-500.0,0.00018082,2]
[389542584,1759708252348,-606.83,0.00018082,2]
[389542585,1759708252357,-669.2,0.00018082,2]
[389542586,1759708252366,-8547.32,0.00018082,2]
[389542587,1759708252375,-890.81,0.00018082,2]
[389542588,1759708252384,-517.96,0.00018082,2]
[389542589,1759708252393,-3134.77,0.00018082,2]
[389542590,1759708252402,-1241.09,0.00018082,2]
[389542591,1759708252411,-547.15,0.00018082,2]
[389542592,1759708252420,-547.70238883,0.00018082,2]
[389542593,1759708252430,-333.01,0.00018082,2]
[389542594,1759708252440,-2628.08,0.00018082,2]
[389542595,1759708252460,-2193.08,0.00018082,2]
[389542596,1759708252470,-2505.47,0.00018082,2]
[389542597,1759708252481,-500.0,0.00018082,2]
[389542598,1759708252493,-500.0,0.00018082,2]
[389542599,1759708252503,-500.0,0.00018082,2]
[389542600,1759708252513,-500.0,0.00018082,2]
[389542601,1759708252524,-500.0,0.00018082,2]
[389542602,1759708252534,-500.0,0.00018082,2]
[389542603,1759708252544,-719.52,0.00018082,2]
[389542604,1759708252553,-1938.28,0.00018082,2]
[389542605,1759708252563,-992.54,0.00018082,2]
[389542606,1759708252572,-2144.27,0.00018082,2]
[389542607,1759708252581,-1530.24,0.00018082,2]
[389542608,1759708252590,-500.0,0.00018082,2]
[389542609,1759708252599,-7479.04,0.00018082,2]
[389542610,1759708252608,-799.91,0.00018082,2]
[389542611,1759708252618,-657.92,0.00018082,2]
[389542612,1759708252628,-902.89,0.00018082,2]
[389542613,1759708252637,-1346.47,0.00018082,2]
[389542614,1759708252647,-500.0,0.00018082,2]
[389542615,1759708252656,-722.31,0.00018082,2]
[389542616,1759708252665,-1232.15,0.00018082,2]
[389542617,1759708252675,-500.0,0.00018082,2]
[389542618,1759708252684,-4267.66,0.00018082,2]
[389542619,1759708252693,-500.0,0.00018082,2]
[389542620,1759708252702,-500.0,0.00018082,2]
[389542621,1759708252712,-500.0,0.00018082,2]
[389542622,1759708252721,-500.0,0.00018082,2]
[389542623,1759708252730,-500.0,0.00018082,2]
[389542624,1759708252740,-1119.55,0.00018082,2]
[389542625,1759708252749,-513.2,0.00018082,2]
[389542626,1759708252758,-500.0,0.00018082,2]
[389542627,1759708252767,-1462.69837622,0.00018091,2]
[389542628,1759708252777,-151.0,0.000181,2]
[389542629,1759708252786,-160.0,0.00018108,2]
[389542630,1759708252797,-160.0,0.00018108,2]
[389542631,1759708252807,-160.0,0.00018108,2]
[389542632,1759708252817,-234.13847417,0.00018108,2]
[389542633,1759708252827,-533.57524315,0.00018108,2]
[389542634,1759708252836,-293.57808533,0.00018108,2]
[389542635,1759708252846,-160.0,0.00018108,2]
[389542636,1759708252856,-160.0,0.00018108,2]
[389542637,1759708252865,-2128.30781748,0.0001813,2]
[389542638,1759708252874,-980.0,0.00018167,2]
[389542639,1759708252884,-630.0,0.00018167,2]
[389542640,1759708252893,-2158.0,0.00018167,2]
[389542641,1759708252903,-150.0,0.00018167,2]
[389542642,1759708252912,-150.0,0.00018167,2]
[389542643,1759708252922,-20006.03981059,0.00018201,2]
[389542644,1759708252931,-258.0,0.00018275,2]
[389542645,1759708252940,-500.0,0.00018289,2]
[389542646,1759708252949,-1000.0,0.00018289,2]
[389542647,1759708252959,-500.0,0.00018289,2]
[389542648,1759708252968,-1000.0,0.00018289,2]
[389542649,1759708252977,-1000.0,0.00018289,2]
[389542650,1759708252986,-1000.0,0.00018289,2]
[389542651,1759708252996,-1000.0,0.00018289,2]
[389542652,1759708253005,-1000.0,0.00018289,2]
[389542653,1759708253015,-1000.0,0.00018289,2]
[389542654,1759708253027,-1000.0,0.00018289,2]
[389542655,1759708253037,-1000.0,0.00018289,2]
[389542656,1759708253046,-1000.0,0.00018289,2]
[389542657,1759708253057,-1000.0,0.00018289,2]
[389542658,1759708253067,-1000.0,0.00018289,2]
[389542659,1759708253077,-500.0,0.00018289,2]
[389542660,1759708253087,-151.0,0.000183,2]
[389542661,1759708253096,-1000.0,0.00018302,2]
[389542662,1759708253106,-509.56710572,0.00018308,2]
[389542663,1759708253116,-1000.0,0.00018308,2]
[389542664,1759708253125,-1000.0,0.00018331,2]
[389542665,1759708253134,-1000.0,0.00018331,2]
[389542666,1759708253144,-420.0,0.00018338,2]
[389542667,1759708253153,-258.0,0.00018342,2]
[389542668,1759708253163,-500.0,0.00018356,2]
[389542669,1759708253172,-500.0,0.00018356,2]
[389542670,1759708253182,-500.0,0.00018356,2]
[389542671,1759708253191,-151.0,0.00018356,2]
[389542672,1759708253200,-151.0,0.00018356,2]
[389542673,1759708253210,-151.0,0.00018356,2]
[389542674,1759708253219,-500.0,0.00018356,2]
[389542675,1759708253228,-122.95989547,0.00018356,2]
[389542676,1759708267757,2257.45,0.00031695,120]
[389542693,1759708383470,1684.697731,0.00015,2]
[389542695,1759708479276,500.0,0.00027397,120]
[389542696,1759708506720,3132.5,0.0002876,120]
[389542699,1759708635751,1000.0,0.00031678,60]
[389542700,1759708638692,5000.0,0.00028767,120]
[389542701,1759708645601,1000.0,0.00031678,60]
[389542702,1759708672888,508.25,0.00031678,60]
[389542707,1759708812464,1218.85,0.000248,30]
[389542708,1759708837698,2000.0,0.00025,30]
[389542709,1759708891357,200.0,0.00023987,120]
[389542710,1759708951785,200.0,0.00028605,120]
[389542714,1759709136768,3999.999999,0.00031687,120]
[389542715,1759709235789,3261.73,0.00028767,120]
[389542716,1759709342678,500.0,0.0002876,120]
[389542717,1759709370761,200.0,0.00028285,120]
[389542718,1759709371383,423.0,0.00028767,120]
[389542766,1759709432507,-186.21822421,0.00016237,2]
[389542767,1759709432516,-300.0,0.00016237,2]
[389542768,1759709432525,-300.0,0.00016337,2]
[389542769,1759709432535,-300.0,0.00016337,2]
[389542770,1759709432544,-194.32063879,0.00016337,2]
[389542791,1759709436301,411.16963,0.00027,120]
[389542792,1759709436584,411.16963,0.00028,120]
[389542833,1759709438463,-105.67936121,0.00016337,2]
[389542835,1759709438480,-300.0,0.00016337,2]
[389542837,1759709438490,-1200.0,0.00016337,2]
[389542839,1759709438500,-14174.04924313,0.00016338,2]
[389542841,1759709438509,-4583.17890347,0.00016428,2]
[389542843,1759709438521,-2324.62109652,0.00016428,2]
[389542845,1759709438530,-1093.9,0.00016428,3]
[389542847,1759709438540,-546.95,0.00016428,3]
[389542849,1759709438550,-273.47,0.00016428,3]
[389542851,1759709438560,-820.46,0.00016428,3]
[389542853,1759709438570,-751.83,0.00016428,3]
[389542855,1759709438580,-202.93065738,0.00016428,3]
[389542857,1759709438593,-172.97934262,0.00016428,3]
[389542859,1759709438603,-187.96,0.00016428,3]
[389542861,1759709438612,-563.9,0.00016428,3]
[389542863,1759709438622,-114.37744852,0.00016438,2]
[389542866,1759709438653,-385.62255148,0.00016438,2]
[389542868,1759709438664,-500.0,0.00016438,2]
[389542870,1759709438673,-500.0,0.00016438,2]
[389542872,1759709438683,-500.0,0.00016438,2]
[389542874,1759709438694,-500.0,0.00016438,2]
[389542876,1759709438703,-500.0,0.00016438,2]
[389542878,1759709438714,-500.0,0.00016438,2]
[389542880,1759709438724,-491.89151387,0.00016438,2]
[389542882,1759709438733,-500.0,0.00016438,2]
[389542884,1759709438744,-272.06119808,0.00016438,2]
[389542886,1759709438755,-500.0,0.00016438,2]
[389542888,1759709438764,-500.0,0.00016438,2]
[389542890,1759709438775,-500.0,0.00016438,2]
[389542892,1759709438786,-620.62229472,0.00016438,2]
[389542894,1759709438796,-500.0,0.00016438,2]
[389542896,1759709438807,-500.0,0.00016438,2]
[389542898,1759709438818,-500.0,0.00016438,2]
[389542899,1759709438827,-500.0,0.00016438,2]
[389542901,1759709438837,-1000.0,0.00016438,2]
[389542904,1759709438848,-537.28160932,0.00016438,2]
[389542906,1759709438860,-500.0,0.00016438,2]
[389542907,1759709438870,-500.0,0.00016438,2]
[389542909,1759709438880,-500.0,0.00016438,2]
[389542911,1759709438890,-500.0,0.00016438,2]
[389542913,1759709438901,-500.0,0.00016438,2]
[389542915,1759709438911,-500.0,0.00016438,2]
[389542917,1759709438921,-500.0,0.00016438,2]
[389542919,1759709438931,-500.0,0.00016438,2]
[389542921,1759709438942,-500.0,0.00016438,2]
[389542923,1759709438953,-500.0,0.00016438,2]
[389542925,1759709438963,-500.0,0.00016438,2]
[389542927,1759709438972,-500.0,0.00016438,2]
[389542929,1759709438983,-500.0,0.00016438,2]
[389542931,1759709438992,-500.0,0.00016438,2]
[389542933,1759709439003,-500.0,0.00016438,2]
[389542935,1759709439017,-500.0,0.00016438,2]
[389542937,1759709439027,-500.0,0.00016438,2]
[389542939,1759709439036,-500.0,0.00016438,2]
[389542941,1759709439047,-500.0,0.00016438,2]
[389542943,1759709439058,-500.0,0.00016438,2]
[389542945,1759709439068,-500.0,0.00016438,2]
[389542947,1759709439078,-500.0,0.00016438,2]
[389542949,1759709439089,-500.0,0.00016438,2]
[389542951,1759709439102,-500.0,0.00016438,2]
[389542953,1759709439112,-500.0,0.00016438,2]
[389542955,1759709439122,-500.0,0.00016438,2]
[389542956,1759709439133,-500.0,0.00016438,2]
[389542957,1759709439143,-474.76765833,0.00016438,2]
[389542958,1759709439153,-642.57243835,0.00016438,2]
[389542959,1759709439164,-500.0,0.00016438,2]
[389542960,1759709439174,-160.40869653,0.00016438,2]
[389542961,1759709439185,-500.0,0.00016438,2]
[389542962,1759709439195,-500.0,0.00016438,2]
[389542963,1759709439205,-500.0,0.00016438,2]
[389542964,1759709439215,-500.0,0.00016438,2]
[389542965,1759709439224,-500.0,0.00016438,2]
[389542966,1759709439234,-500.0,0.00016438,2]
[389542967,1759709439245,-500.0,0.00016438,2]
[389542968,1759709439255,-500.0,0.00016438,2]
[389542969,1759709439264,-500.0,0.00016438,2]
[389542970,1759709439274,-500.0,0.00016438,2]
[389542971,1759709439284,-343.51718202,0.00016438,2]
[389542972,1759709439294,-500.0,0.00016438,2]
[389542973,1759709439305,-500.0,0.00016438,2]
[389542974,1759709439314,-500.0,0.00016438,2]
[389542975,1759709439325,-500.0,0.00016438,2]
[389542976,1759709439334,-500.0,0.00016438,2]
[389542977,1759709439346,-500.0,0.00016438,2]
[389542978,1759709439356,-500.0,0.00016438,2]
[389542979,1759709439366,-500.0,0.00016438,2]
[389542980,1759709439376,-500.0,0.00016438,2]
[389542981,1759709439386,-500.0,0.00016438,2]
[389542982,1759709439396,-500.0,0.00016438,2]
[389542983,1759709439405,-500.0,0.00016438,2]
[389542984,1759709439415,-500.0,0.00016438,2]
[389542985,1759709439424,-500.0,0.00016438,2]
[389542986,1759709439433,-500.0,0.00016438,2]
[389542987,1759709439442,-1123.79,0.00016438,2]
[389542988,1759709439452,-500.0,0.00016438,2]
[389542989,1759709439462,-500.0,0.00016438,2]
[389542990,1759709439471,-500.0,0.00016438,2]
[389542991,1759709439480,-500.0,0.00016438,2]
[389542992,1759709439490,-500.0,0.00016438,2]
[389542993,1759709439498,-580.24702468,0.00016438,2]
[389542994,1759709439507,-500.0,0.00016438,2]
[389542995,1759709439516,-500.0,0.00016438,2]
[389542996,1759709439525,-500.0,0.00016438,2]
[389542997,1759709439535,-500.0,0.00016438,2]
[389542998,1759709439544,-500.0,0.00016438,2]
[389542999,1759709439553,-500.0,0.00016438,2]
[389543000,1759709439564,-442.7971609,0.00016438,2]
[389543001,1759709439573,-500.0,0.00016438,2]
[389543002,1759709439583,-555.66,0.00016438,2]
[389543003,1759709439593,-500.0,0.00016438,2]
[389543004,1759709439603,-500.0,0.00016438,2]
[389543005,1759709439612,-500.0,0.00016438,2]
[389543006,1759709439622,-500.0,0.00016438,2]
[389543007,1759709439632,-500.0,0.00016438,2]
[389543008,1759709439641,-500.0,0.00016438,2]
[389543009,1759709439651,-500.0,0.00016438,2]
[389543010,1759709439661,-500.0,0.00016438,2]
[389543011,1759709439671,-500.0,0.00016438,2]
[389543012,1759709439681,-118.61445246,0.00016438,2]
[389543013,1759709439696,-381.38554754,0.00016438,2]
[389543014,1759709439706,-1016.99,0.00016438,2]
[389543015,1759709439715,-500.0,0.00016438,2]
[389543016,1759709439725,-500.0,0.00016438,2]
[389543017,1759709439734,-500.0,0.00016438,2]
[389543018,1759709439744,-500.0,0.00016438,2]
[389543019,1759709439753,-38.59407977,0.00016438,2]
[389543020,1759709439765,-461.40592023,0.00016438,2]
[389543021,1759709439775,-500.0,0.00016438,2]
[389543022,1759709439785,-160.68066413,0.00016438,2]
[389543023,1759709439797,-339.31933587,0.00016438,2]
[389543024,1759709439807,-500.0,0.00016438,2]
[389543025,1759709439816,-500.0,0.00016438,2]
[389543026,1759709439825,-500.0,0.00016438,2]
[389543027,1759709439835,-500.0,0.00016438,2]
[389543028,1759709439845,-500.0,0.00016438,2]
[389543029,1759709439855,-500.0,0.00016438,2]
[389543030,1759709439864,-500.0,0.00016438,2]
[389543031,1759709439874,-237.04106012,0.00016438,2]
[389543067,1759709440392,-262.95893988,0.00016438,2]
[389543070,1759709440404,-500.0,0.00016438,2]
[389543072,1759709440416,-500.0,0.00016438,2]
[389543074,1759709440429,-500.0,0.00016438,2]
[389543076,1759709440440,-500.0,0.00016438,2]
[389543078,1759709440452,-500.0,0.00016438,2]
[389543081,1759709440463,-500.0,0.00016438,2]
[389543083,1759709440473,-500.0,0.00016438,2]
[389543085,1759709440483,-500.0,0.00016438,2]
[389543087,1759709440494,-500.0,0.00016438,2]
[389543089,1759709440506,-500.0,0.00016438,2]
[389543091,1759709440518,-500.0,0.00016438,2]
[389543094,1759709440529,-500.0,0.00016438,2]
[389543096,1759709440541,-500.0,0.00016438,2]
[389543098,1759709440553,-500.0,0.00016438,2]
[389543100,1759709440564,-500.0,0.00016438,2]
[389543103,1759709440576,-500.0,0.00016438,2]
[389543107,1759709440587,-500.0,0.00016438,2]
[389543109,1759709440599,-200.83395011,0.00016438,2]
[389543111,1759709440614,-344.34604989,0.00016438,2]
[389543114,1759709440626,-500.0,0.00016438,2]
[389543116,1759709440637,-500.0,0.00016438,2]
[389543118,1759709440648,-500.0,0.00016438,2]
[389543120,1759709440659,-500.0,0.00016438,2]
[389543122,1759709440670,-500.0,0.00016438,2]
[389543125,1759709440682,-500.0,0.00016438,2]
[389543127,1759709440692,-500.0,0.00016438,2]
[389543129,1759709440703,-500.0,0.00016438,2]
[389543131,1759709440713,-500.0,0.00016438,2]
[389543133,1759709440724,-584.99,0.00016438,2]
[389543136,1759709440735,-509.2,0.00016438,2]
[389543138,1759709440747,-500.0,0.00016438,2]
[389543140,1759709440758,-500.0,0.00016438,2]
[389543142,1759709440769,-500.0,0.00016438,2]
[389543144,1759709440779,-500.0,0.00016438,2]
[389543146,1759709440789,-500.0,0.00016438,2]
[389543148,1759709440799,-505.05744399,0.00016438,2]
[389543150,1759709440809,-500.0,0.00016438,2]
[389543153,1759709440822,-500.0,0.00016438,2]
[389543155,1759709440831,-500.0,0.00016438,2]
[389543157,1759709440842,-500.0,0.00016438,2]
[389543159,1759709440853,-500.0,0.00016438,2]
[389543161,1759709440865,-500.0,0.00016438,2]
[389543163,1759709440876,-500.0,0.00016438,2]
[389543166,1759709440888,-500.0,0.00016438,2]
[389543168,1759709440900,-500.0,0.00016438,2]
[389543170,1759709440912,-633.91,0.00016438,2]
[389543172,1759709440924,-500.0,0.00016438,2]
[389543175,1759709440935,-500.0,0.00016438,2]
[389543177,1759709440948,-500.0,0.00016438,2]
[389543179,1759709440960,-500.0,0.00016438,2]
[389543181,1759709440972,-500.0,0.00016438,2]
[389543184,1759709440982,-500.0,0.00016438,2]
[389543186,1759709440992,-500.0,0.00016438,2]
[389543188,1759709441001,-500.0,0.00016438,2]
[389543190,1759709441012,-139.95523452,0.00016438,2]
[389543192,1759709441028,-360.04476548,0.00016438,2]
[389543194,1759709441039,-482.52866925,0.00016438,2]
[389543196,1759709441050,-500.0,0.00016438,2]
[389543199,1759709441064,-1043.97,0.00016438,2]
[389543200,1759709441076,-500.0,0.00016438,2]
[389543202,1759709441088,-500.0,0.00016438,2]
[389543204,1759709441100,-269.60656512,0.00016438,2]
[389543544,1759709444377,-230.39343488,0.00016438,2]
[389543546,1759709444389,-500.0,0.00016438,2]
[389543548,1759709444399,-219.60656512,0.00016438,2]
[389543684,1759709446060,4020.13212374,0.0002012,9]
[389549795,1759709530051,487.69572094,0.00028,120]
[389549796,1759709551353,200.0,0.00028617,120]
[389549797,1759709558595,500.0,0.00028767,120]
[389549798,1759709572554,500.0,0.0002876,120]
[389549799,1759709598205,500.0,0.0002876,120]
[389549800,1759709790911,200.0,0.00027848,120]
[389549801,1759709883628,158.02090327,0.00015771,2]
[389549802,1759709910790,200.0,0.00028545,120]
[389549803,1759710030756,200.0,0.0002738,120]
[389549804,1759710064978,666.0,0.00015438,2]
[389549805,1759710090838,200.0,0.00026303,120]
[389549806,1759710112122,544.27964804,0.00015738,2]
[389549807,1759710197097,25977.0,0.00031828,60]
[389549808,1759710234933,333.90019315,0.00015738,2]
[389549809,1759710236430,1335.6007726,0.00015738,2]
[389549810,1759710238097,3005.10173836,0.00015738,2]
[389549811,1759710239446,741.3374854,0.00015738,2]
[389549812,1759710239468,4595.72320192,0.00015738,2]
[389549813,1759710315187,500.0,0.00027397,120]
[389549814,1759710339961,264.18143242,0.00028767,120]
[389549815,1759710391262,200.0,0.0002817,120]
[389549871,1759710632632,-1462.69837622,0.00016187,2]
[389549873,1759710632641,-300.0,0.00016336,2]
[389549875,1759710632650,-300.0,0.00016336,2]
[389549877,1759710632659,-1200.0,0.00016336,2]
[389549879,1759710632668,-1200.0,0.00016337,2]
[389549881,1759710632677,-561.47570925,0.00016337,2]
[389549883,1759710632685,-356.14903448,0.00016337,2]
[389549885,1759710632695,-300.0,0.00016338,2]
[389549887,1759710632704,-4590.34950255,0.00016338,2]
[389549889,1759710632713,-689.56279918,0.00016338,2]
[389549891,1759710632724,-18790.70671294,0.00016338,2]
[389549893,1759710632733,-1076.67,0.00016428,3]
[389549895,1759710632742,-538.33,0.00016428,3]
[389549897,1759710632752,-269.17,0.00016428,3]
[389549899,1759710632765,-807.53,0.00016428,3]
[389549901,1759710632782,-500.0,0.00016438,2]
[389549903,1759710632791,-188.78798777,0.00016438,2]
[389549905,1759710632802,-500.0,0.00016438,2]
[389549908,1759710632812,-500.0,0.00016438,2]
[389549910,1759710632821,-543.72,0.00016438,2]
[389549911,1759710632831,-500.0,0.00016438,2]
[389549913,1759710632840,-500.0,0.00016438,2]
[389549915,1759710632850,-274.68411504,0.00016438,2]
[389549917,1759710632859,-500.0,0.00016438,2]
[389549919,1759710632869,-501.18297402,0.00016438,2]
[389549922,1759710632878,-466.6484443,0.00016438,2]
[389549924,1759710632888,-501.46227907,0.00016438,2]
[389549926,1759710632898,-500.0,0.00016438,2]
[389549928,1759710632907,-500.0,0.00016438,2]
[389549930,1759710632915,-3740.01268912,0.00016438,2]
[389549974,1759710638487,-471.36995738,0.00016438,2]
[389549976,1759710638497,-500.0,0.00016438,2]
[389549978,1759710638506,-500.0,0.00016438,2]
[389549980,1759710638518,-500.0,0.00016438,2]
[389549981,1759710638528,-500.0,0.00016438,2]
[389549984,1759710638538,-227.05747058,0.00016438,2]
[389549986,1759710638548,-500.0,0.00016438,2]
[389549987,1759710638560,-500.0,0.00016438,2]
[389549989,1759710638570,-500.0,0.00016438,2]
[389549991,1759710638580,-500.0,0.00016438,2]
[389549992,1759710638591,-500.0,0.00016438,2]
[389549994,1759710638599,-500.0,0.00016438,2]
[389549995,1759710638609,-500.0,0.00016438,2]
[389549997,1759710638618,-500.0,0.00016438,2]
[389549999,1759710638627,-400.844225,0.00016438,2]
[389550001,1759710638636,-500.0,0.00016438,2]
[389550002,1759710638646,-450.28010447,0.00016438,2]
[389550003,1759710638657,-3775.46824257,0.00016438,2]